bitfinex/quotes_BTCUSD_20260117
["timestamp","ask_amount","ask_price","bid_price","bid_amount"]
[1768623634757,0.01050287,95212.0,95207.0,0.01050342]
[1768623635414,0.01050287,95212.0,95208.0,0.01050331]
[1768623635836,0.01050276,95213.0,95208.0,0.01050331]
[1768623637724,0.01050287,95212.0,95208.0,0.01050331]
[1768623639143,0.01050276,95213.0,95209.0,0.0105032]
[1768623640542,0.01050276,95213.0,95201.0,0.13778409]
[1768623640543,0.05251502,95211.0,95201.0,0.13778409]
[1768623640775,0.01050309,95210.0,95205.0,0.01050365]
[1768623640983,0.0105032,95209.0,95205.0,0.01050365]
[1768623642132,0.06301802,95211.0,95205.0,0.01050365]
[1768623642133,0.01050287,95212.0,95208.0,0.01050331]
[1768623642327,0.01050287,95212.0,95207.0,0.01050342]
[1768623642560,0.01050298,95211.0,95207.0,0.01050342]
[1768623643534,0.01050287,95212.0,95208.0,0.01050331]
[1768623644654,0.01050276,95213.0,95208.0,0.01050331]
[1768623644796,0.01050287,95212.0,95207.0,0.01050342]
[1768623644999,0.01050243,95216.0,95211.0,0.01050298]
[1768623645197,0.01050254,95215.0,95210.0,0.01050309]
[1768623645406,0.01050254,95215.0,95211.0,0.01050298]
[1768623655387,0.0634955,95217.0,95212.0,0.01050287]
[1768623655609,0.01050254,95215.0,95211.0,0.01050298]
[1768623656642,0.01098375,95217.0,95212.0,0.06301725]
[1768623656793,0.01050243,95216.0,95211.0,0.01050298]
[1768623656998,0.01050254,95215.0,95211.0,0.01050298]
[1768623659753,0.01050243,95216.0,95211.0,0.01050298]
[1768623661038,0.01050254,95215.0,95211.0,0.01050298]
[1768623664969,0.01098375,95217.0,95211.0,0.01050298]
[1768623665175,0.01050243,95216.0,95211.0,0.01050298]
[1768623666192,0.01050254,95215.0,95211.0,0.01050298]
[1768623667929,0.01050177,95222.0,95217.0,0.01050232]
[1768623668140,0.01050177,95222.0,95217.0,0.05906641]
[1768623668559,0.01050166,95223.0,95219.0,0.0105021]
[1768623669007,0.01050166,95223.0,95217.0,0.05906641]
[1768623669008,0.01050177,95222.0,95218.0,0.01050221]
[1768623669627,0.12728,95225.0,95219.0,0.06301248]
[1768623669836,1.14319923,95272.0,95225.0,0.01050144]
[1768623669837,0.12728,95229.0,95225.0,0.01050144]
[1768623670064,0.12728,95229.0,95226.0,0.06300799]
[1768623670322,0.12728,95229.0,95227.0,0.05250611]
[1768623670724,0.01050023,95236.0,95232.0,0.01050067]
[1768623670929,0.01050045,95234.0,95230.0,0.01050089]
[1768623671490,0.01054778,95234.0,95230.0,0.01050089]
[1768623671909,0.01050056,95233.0,95229.0,0.010501]
[1768623672992,0.01050056,95233.0,95226.0,0.05906542]
[1768623673178,0.01050056,95233.0,95229.0,0.010501]
[1768623673576,4.733e-05,95234.0,95231.0,0.06300426]
[1768623673779,4.733e-05,95234.0,95231.0,0.01050078]
[1768623674224,4.733e-05,95234.0,95231.0,0.06300459]
[1768623675154,4.733e-05,95234.0,95232.0,0.05250333]
[1768623675395,4.733e-05,95234.0,95233.0,0.0525028]
[1768623684326,0.0629982,95241.0,95228.0,0.01050111]
[1768623684327,0.01049956,95242.0,95238.0,0.05661869]
[1768623684536,0.01049934,95244.0,95240.0,0.01045432]
[1768623684730,0.01054667,95244.0,95240.0,0.01045432]
[1768623685159,4.733e-05,95244.0,95241.0,0.01049967]
[1768623685357,0.01049923,95245.0,95241.0,0.01049967]
[1768623685748,0.01049923,95245.0,95240.0,0.01045432]
[1768623686985,0.01049923,95245.0,95241.0,0.01049967]
[1768623687231,0.01049923,95245.0,95240.0,0.01045432]
[1768623687672,0.01049923,95245.0,95241.0,0.01049967]
[1768623688454,0.01049912,95246.0,95242.0,0.01049956]
[1768623689071,0.1273976,95247.0,95243.0,0.01049945]
[1768623689248,0.13789661,95247.0,95243.0,0.01049945]
[1768623689892,0.01049912,95246.0,95242.0,0.01049956]
[1768623690539,0.13789661,95247.0,95243.0,0.01049945]
[1768623690860,0.01049912,95246.0,95242.0,0.01049956]
[1768623691056,0.01049912,95246.0,95241.0,0.01049967]
[1768623692199,0.01049923,95245.0,95241.0,0.01049967]
[1768623693298,0.01049923,95245.0,95241.0,0.01045421]
[1768623698036,0.01049923,95245.0,95241.0,0.01040875]
[1768623698238,0.01049945,95243.0,95238.0,0.05851294]
[1768623698463,0.01049956,95242.0,95238.0,0.04801293]
[1768623698683,0.01049945,95243.0,95238.0,0.04801293]
[1768623699760,0.01041035,95243.0,95239.0,0.0104999]
[1768623701020,0.01049923,95245.0,95239.0,0.0104999]
[1768623701021,0.01049923,95245.0,95240.0,0.01049979]
[1768623701640,0.01049923,95245.0,95241.0,0.01049967]
[1768623702802,0.01049934,95244.0,95239.0,0.06299928]
[1768623704346,0.01049934,95244.0,95240.0,0.01049979]
[1768623706459,0.01049945,95243.0,95237.0,0.06300025]
[1768623706698,0.0104999,95239.0,95233.0,0.05851349]
[1768623706871,0.01050001,95238.0,95233.0,0.11101605]
[1768623707414,0.01050001,95238.0,95233.0,0.06300312]
[1768623707967,0.01050001,95238.0,95233.0,0.01050056]
[1768623708180,0.01050001,95238.0,95233.0,0.05851349]
[1768623708603,0.01050012,95237.0,95233.0,0.05851349]
[1768623709885,0.01050012,95237.0,95233.0,0.01050056]
[1768623710109,0.01050001,95238.0,95231.0,0.12724]
[1768623710539,0.0525006,95237.0,95231.0,0.12724]
[1768623710714,0.01050045,95234.0,95231.0,0.12724]
[1768623712020,0.01050034,95235.0,95231.0,0.12724]
[1768623712229,0.01050034,95235.0,95231.0,0.13774078]
[1768623713450,0.05250599,95228.0,95221.0,0.09958618]
[1768623713650,0.01050111,95228.0,95224.0,0.12724]
[1768623713850,0.06300678,95228.0,95222.0,0.01050177]
[1768623714006,0.01050111,95228.0,95222.0,0.06301056]
[1768623714366,0.01050111,95228.0,95223.0,0.01050166]
[1768623714691,0.010501,95229.0,95223.0,0.01050166]
[1768623714692,0.010501,95229.0,95223.0,0.06300987]
[1768623714866,0.01050111,95228.0,95224.0,0.01050155]
[1768623716062,0.01050111,95228.0,95220.0,0.01050199]
[1768623716063,0.01050155,95224.0,95220.0,0.01050199]
[1768623716269,0.06300849,95226.0,95220.0,0.01050199]
[1768623716502,0.01050144,95225.0,95221.0,0.01050188]
[1768623717075,0.02100047,95223.0,95218.0,0.01050221]
[1768623717259,0.03150213,95223.0,95218.0,0.01050221]
[1768623717467,0.03150213,95223.0,95219.0,0.0105021]
[1768623717981,0.01050177,95222.0,95218.0,0.01050221]
[1768623718373,0.03150213,95223.0,95219.0,0.0105021]
[1768623718596,0.03150213,95223.0,95220.0,0.01050199]
[1768623718597,0.02100047,95223.0,95220.0,0.01050199]
[1768623719349,0.02100047,95223.0,95220.0,0.01045653]
[1768623720047,0.02100047,95223.0,95220.0,0.06296646]
[1768623720281,0.02100047,95223.0,95220.0,0.01045653]
[1768623721166,0.02100047,95223.0,95220.0,0.06296645]
[1768623721367,0.02100047,95223.0,95220.0,0.01045653]
[1768623722012,0.01050122,95227.0,95220.0,0.01045653]
[1768623722213,0.01050122,95227.0,95222.0,0.01050177]
[1768623722619,0.010501,95229.0,95224.0,0.01050155]
[1768623723016,0.05250339,95232.0,95226.0,0.06300792]
[1768623723216,0.05250339,95232.0,95226.0,0.01050133]
[1768623723981,0.01050089,95230.0,95226.0,0.01050133]
[1768623728035,0.01050089,95230.0,95226.0,0.01045587]
[1768623733614,0.13774078,95231.0,95226.0,0.01045587]
[1768623733951,0.13774078,95231.0,95227.0,0.01050122]
[1768623734952,0.12724,95231.0,95228.0,0.01050111]
[1768623735132,0.13774078,95231.0,95227.0,0.01050122]
[1768623735712,0.13774078,95231.0,95226.0,0.01045587]
[1768623735913,0.01050122,95227.0,95222.0,0.05250864]
[1768623737142,0.01050122,95227.0,95221.0,0.05250928]
[1768623737342,0.01050133,95226.0,95222.0,0.01050177]
[1768623742304,0.01050144,95225.0,95221.0,0.01050188]
[1768623745342,0.01050133,95226.0,95222.0,0.01050177]
[1768623749720,0.01050133,95226.0,95221.0,0.01050188]
[1768623749921,0.01050144,95225.0,95220.0,0.01050199]
[1768623750118,0.01050155,95224.0,95220.0,0.01045653]
[1768623750902,0.01050155,95224.0,95219.0,0.01050199]
[1768623750903,0.01050166,95223.0,95219.0,0.01050199]
[1768623752161,0.06301076,95222.0,95219.0,0.01050199]
[1768623752510,0.05250997,95220.0,95219.0,0.01050199]
[1768623752832,0.05250956,95221.0,95219.0,0.01050199]
[1768623753050,0.05250956,95221.0,95215.0,0.01050254]
[1768623753051,0.01050199,95220.0,95215.0,0.01050254]
[1768623753585,0.01050199,95220.0,95216.0,0.0315009]
[1768623755473,0.01050199,95220.0,95212.0,0.06301701]
[1768623755474,0.01050276,95213.0,95208.0,0.00048145]
[1768623755626,0.01050276,95213.0,95208.0,0.01098476]
[1768623755627,0.01050287,95212.0,95208.0,0.01098476]
[1768623756433,0.01050287,95212.0,95208.0,0.00048145]
[1768623756638,0.01050298,95211.0,95208.0,0.00048145]
[1768623756840,0.01050287,95212.0,95208.0,0.00043599]
[1768623757052,0.01050287,95212.0,95208.0,0.0109393]
[1768623757764,0.01050265,95214.0,95209.0,0.0105032]
[1768623758113,0.01050265,95214.0,95210.0,0.01050309]
[1768623758285,0.01050221,95218.0,95212.0,0.01050287]
[1768623758504,0.01050232,95217.0,95213.0,0.01050276]
[1768623759479,0.0105021,95219.0,95214.0,0.01050265]
[1768623760122,0.06301272,95219.0,95214.0,0.01050265]
[1768623760255,0.0630133,95218.0,95213.0,0.01050276]
[1768623760453,0.01050232,95217.0,95213.0,0.01050276]
[1768623760674,0.01050243,95216.0,95212.0,0.01050287]
[1768623761099,0.06301401,95217.0,95213.0,0.01050276]
[1768623761100,0.01050232,95217.0,95213.0,0.01050276]
[1768623761528,0.01050243,95216.0,95212.0,0.01050287]
[1768623763500,0.01050254,95215.0,95211.0,0.01045752]
[1768623764505,0.01050254,95215.0,95211.0,0.01041206]
[1768623764729,0.0630153,95215.0,95210.0,0.01050309]
[1768623765798,0.01050254,95215.0,95210.0,0.01050309]
[1768623767372,0.01050254,95215.0,95211.0,0.01050298]
[1768623768699,0.01050265,95214.0,95210.0,0.01050309]
[1768623770573,0.01050265,95214.0,95209.0,0.0105032]
[1768623770772,0.01050265,95214.0,95209.0,0.06301921]
[1768623772093,0.01050265,95214.0,95208.0,0.06345542]
[1768623772094,0.01050276,95213.0,95208.0,0.00043599]
[1768623772270,0.01050287,95212.0,95208.0,0.00043599]
[1768623772655,0.01050298,95211.0,95208.0,0.00043599]
[1768623773076,0.01050287,95212.0,95208.0,0.00043599]
[1768623774043,0.01050287,95212.0,95208.0,0.0109393]
[1768623775460,0.01050298,95211.0,95208.0,0.00043599]
[1768623777007,0.06301836,95211.0,95208.0,0.00043599]
[1768623777225,0.01050298,95211.0,95208.0,0.00043599]
[1768623778269,0.06301824,95211.0,95208.0,0.00043599]
[1768623778419,0.01050298,95211.0,95208.0,0.00043599]
[1768623779735,0.01050287,95212.0,95208.0,0.0109393]
[1768623780592,0.01050298,95211.0,95208.0,0.00043599]
[1768623781608,0.06301812,95211.0,95208.0,0.00043599]
[1768623781865,0.01050298,95211.0,95208.0,0.00043599]
[1768623782599,0.01050287,95212.0,95208.0,0.00043599]
[1768623782811,0.01050298,95211.0,95208.0,0.00043599]
[1768623783579,0.06301796,95211.0,95208.0,0.00043599]
[1768623783793,0.01050287,95212.0,95208.0,0.00039053]
[1768623783999,0.01050287,95212.0,95208.0,0.01089384]
[1768623784216,0.01050298,95211.0,95208.0,0.00039053]
[1768623785745,0.06301796,95211.0,95208.0,0.00039053]
[1768623785941,0.01050298,95211.0,95208.0,0.00039053]
[1768623786801,0.01050287,95212.0,95208.0,0.00039053]
[1768623787013,0.01050287,95212.0,95208.0,0.01089384]
[1768623787438,0.01050287,95212.0,95208.0,0.00039053]
[1768623787937,0.01050276,95213.0,95208.0,0.01089384]
[1768623788817,0.01050254,95215.0,95210.0,0.01050309]
[1768623789056,0.01050265,95214.0,95209.0,0.0105032]
[1768623789285,0.01050265,95214.0,95210.0,0.01050309]
[1768623791678,0.01050276,95213.0,95209.0,0.0105032]
[1768623792694,0.01050265,95214.0,95209.0,0.0105032]
[1768623793011,0.01050265,95214.0,95209.0,0.01045775]
[1768623793607,0.01050276,95213.0,95209.0,0.01045775]
[1768623793940,0.01050276,95213.0,95208.0,0.01089384]
[1768623793941,0.01050298,95211.0,95208.0,0.00039053]
[1768623794142,0.01050287,95212.0,95208.0,0.00039053]
[1768623795242,0.01050298,95211.0,95208.0,0.00039053]
[1768623796257,0.01050287,95212.0,95208.0,0.01089384]
[1768623796471,0.01050276,95213.0,95209.0,0.0105032]
[1768623798294,0.01050265,95214.0,95209.0,0.0105032]
[1768623798492,0.01050265,95214.0,95210.0,0.01050309]
[1768623799264,0.06301562,95215.0,95211.0,0.01050298]
[1768623799265,0.01050254,95215.0,95211.0,0.01050298]
[1768623799910,0.01050254,95215.0,95211.0,0.01045753]
[1768623800282,0.01050254,95215.0,95209.0,0.0105032]
[1768623800283,0.01050265,95214.0,95209.0,0.0105032]
[1768623800835,0.01050276,95213.0,95209.0,0.0105032]
[1768623803357,0.01050276,95213.0,95208.0,0.01089384]
[1768623803925,0.01050287,95212.0,95208.0,0.01089384]
[1768623808242,0.01050287,95212.0,95208.0,0.01084839]
[1768623809982,0.01050276,95213.0,95208.0,0.06336475]
[1768623810565,0.01050265,95214.0,95210.0,0.01050309]
[1768623810770,0.01050287,95212.0,95208.0,0.01084839]
[1768623810974,0.01050265,95214.0,95209.0,0.06301883]
[1768623811427,0.01050265,95214.0,95210.0,0.01050309]
[1768623811827,0.01050276,95213.0,95209.0,0.0105032]
[1768623814886,0.01050265,95214.0,95210.0,0.01050309]
[1768623816510,0.01050221,95218.0,95213.0,0.01050276]
[1768623817062,0.01050221,95218.0,95213.0,0.06301649]
[1768623817482,0.01050199,95220.0,95216.0,0.01050243]
[1768623817691,0.01050188,95221.0,95216.0,0.01045698]
[1768623817889,0.01050199,95220.0,95216.0,0.01045698]
[1768623818816,0.01050199,95220.0,95216.0,0.01050243]
[1768623819731,0.01050199,95220.0,95215.0,0.01050254]
[1768623819942,0.0105021,95219.0,95215.0,0.01050254]
[1768623821550,0.01050188,95221.0,95216.0,0.01050243]
[1768623821938,0.0105021,95219.0,95214.0,0.01050265]
[1768623822614,0.0105021,95219.0,95215.0,0.01050254]
[1768623824602,0.06301145,95221.0,95216.0,0.01050243]
[1768623824775,0.01050199,95220.0,95216.0,0.01045698]
[1768623830997,0.12724,95223.0,95220.0,0.01050199]
[1768623831410,0.12724,95223.0,95220.0,0.06301178]
[1768623833654,0.12724,95223.0,95221.0,0.05250934]
[1768623833860,0.12724,95223.0,95220.0,0.01050199]
[1768623834870,0.12724,95223.0,95220.0,0.06301187]
[1768623835440,0.12724,95223.0,95220.0,0.01050199]
[1768623837424,0.12724,95223.0,95219.0,0.0105021]
[1768623837546,0.13774166,95223.0,95219.0,0.0105021]
[1768623838821,0.13774166,95223.0,95218.0,0.01050221]
[1768623839176,0.13774166,95223.0,95219.0,0.0105021]
[1768623840502,0.12724,95223.0,95220.0,0.01050199]
[1768623841271,0.12724,95223.0,95219.0,0.0105021]
[1768623842333,0.12724,95223.0,95220.0,0.01050199]
[1768623844430,0.12714908,95223.0,95220.0,0.01050199]
[1768623845990,0.13765074,95223.0,95219.0,0.0105021]
[1768623849963,0.12714908,95223.0,95220.0,0.01050199]
[1768623850165,0.12714908,95223.0,95219.0,0.0105021]
[1768623851469,0.20999142,95242.0,95226.0,0.01050133]
[1768623851676,0.04820424,95243.0,95226.0,0.01050133]
[1768623851677,0.01050045,95234.0,95229.0,0.010501]
[1768623852520,0.01050056,95233.0,95229.0,0.010501]
[1768623852718,0.01050045,95234.0,95230.0,0.01050089]
[1768623854092,0.12724,95235.0,95232.0,0.05250331]
[1768623854301,0.12724,95235.0,95231.0,0.01050078]
[1768623854509,0.13774034,95235.0,95231.0,0.01050078]
[1768623854694,0.01050034,95235.0,95231.0,0.01050078]
[1768623854888,0.06300147,95236.0,95231.0,0.01050078]
[1768623855030,0.01050023,95236.0,95231.0,0.01050078]
[1768623855464,0.01050034,95235.0,95231.0,0.01050078]
[1768623855670,0.01050034,95235.0,95230.0,0.01050089]
[1768623856281,0.01050034,95235.0,95231.0,0.01050078]
[1768623857135,0.01050023,95236.0,95231.0,0.01050078]
[1768623857536,0.01050045,95234.0,95230.0,0.01050089]
[1768623857950,0.01050056,95233.0,95229.0,0.010501]
[1768623858173,0.01050067,95232.0,95228.0,0.01050111]
[1768623858373,0.01050056,95233.0,95229.0,0.010501]
[1768623859426,0.01050067,95232.0,95228.0,0.01050111]
[1768623859625,0.01050067,95232.0,95227.0,0.01050122]
[1768623859828,0.01050067,95232.0,95227.0,0.06300718]
[1768623860437,0.01050067,95232.0,95227.0,0.01050122]
[1768623860637,0.01050067,95232.0,95228.0,0.01050111]
[1768623861045,0.01050078,95231.0,95227.0,0.01050122]
[1768623861881,0.01050089,95230.0,95226.0,0.01050133]
[1768623862084,0.01050089,95230.0,95224.0,0.05689626]
[1768623862085,0.01050111,95228.0,95224.0,0.02100255]
[1768623862283,0.010501,95229.0,95225.0,0.01050144]
[1768623864462,0.0413473,95230.0,95225.0,0.01050144]
[1768623864668,0.0413473,95230.0,95226.0,0.0315009]
[1768623865100,0.01050089,95230.0,95226.0,0.04200223]
[1768623865724,0.01050089,95230.0,95226.0,0.01050133]
[1768623865938,0.01050089,95230.0,95227.0,0.0315009]
[1768623866371,0.12724,95241.0,95227.0,0.08944688]
[1768623866579,0.01097309,95239.0,95235.0,0.01050034]
[1768623866788,0.00047319,95239.0,95235.0,0.01050034]
[1768623867247,0.00047319,95239.0,95235.0,0.063002]
[1768623867676,0.01049945,95243.0,95235.0,0.063002]
[1768623867677,0.01049912,95246.0,95239.0,0.0104999]
[1768623867884,0.01049912,95246.0,95241.0,0.01049967]
[1768623868098,0.01049923,95245.0,95241.0,0.01049967]
[1768623868302,0.01049923,95245.0,95240.0,0.01049979]
[1768623868687,0.01049934,95244.0,95240.0,0.01049979]
[1768623868918,0.01049945,95243.0,95239.0,0.0104999]
[1768623871059,0.01049956,95242.0,95236.0,0.06300129]
[1768623871255,0.01049967,95241.0,95237.0,0.01050012]
[1768623871452,0.01049979,95240.0,95234.0,0.02100024]
[1768623871707,0.01049979,95240.0,95234.0,0.02104757]
[1768623871912,0.0629988,95240.0,95234.0,0.02104757]
[1768623872108,0.01050001,95238.0,95234.0,0.02104757]
[1768623872306,0.01050012,95237.0,95234.0,0.01054712]
[1768623874687,0.01050001,95238.0,95234.0,0.01054712]
[1768623875269,0.01050012,95237.0,95234.0,0.01054712]
[1768623875747,0.01050001,95238.0,95234.0,0.02104757]
[1768623876125,0.01050012,95237.0,95234.0,0.01054712]
[1768623879615,0.06300087,95237.0,95234.0,0.01054712]
[1768623880969,0.01050012,95237.0,95234.0,0.01054712]
[1768623881378,0.05250164,95236.0,95234.0,4.733e-05]
[1768623882309,0.06300074,95237.0,95234.0,4.733e-05]
[1768623882717,0.01050012,95237.0,95234.0,4.733e-05]
[1768623883219,0.06300076,95237.0,95234.0,4.733e-05]
[1768623884188,0.01050012,95237.0,95234.0,4.733e-05]
[1768623890031,0.056316,95229.0,95224.0,0.01050155]
[1768623890256,0.01050111,95228.0,95225.0,0.12724]
[1768623890583,0.01050122,95227.0,95224.0,0.00047319]
[1768623890810,0.01050122,95227.0,95219.0,0.0105021]
[1768623890811,0.01050166,95223.0,95219.0,0.0105021]
[1768623891109,0.01050144,95225.0,95221.0,0.01050188]
[1768623891489,0.01050144,95225.0,95220.0,0.01050199]
[1768623891855,0.01050144,95225.0,95221.0,0.01050188]
[1768623893070,0.01050177,95222.0,95219.0,4.733e-05]
[1768623894243,0.05251233,95216.0,95214.0,0.01065937]
[1768623894445,0.01050232,95217.0,95214.0,0.0001576]
[1768623894918,0.06301396,95217.0,95214.0,0.0001576]
[1768623897608,0.01050232,95217.0,95214.0,0.0001576]
[1768623898637,0.06301427,95217.0,95214.0,0.00011215]
[1768623899013,0.06301427,95217.0,95214.0,6.67e-05]
[1768623901390,0.01050232,95217.0,95214.0,6.67e-05]
[1768623901789,0.0105021,95219.0,95214.0,6.67e-05]
[1768623902048,0.01050199,95220.0,95216.0,0.01050243]
[1768623902249,0.01050188,95221.0,95217.0,0.01050232]
[1768623902498,0.01050177,95222.0,95217.0,0.01050232]
[1768623902903,0.01050166,95223.0,95218.0,0.01050221]
[1768623903085,0.01050144,95225.0,95221.0,0.01050188]
[1768623903281,0.01050155,95224.0,95220.0,0.01050199]
[1768623903486,0.01050155,95224.0,95220.0,0.01045654]
[1768623904662,0.01050144,95225.0,95221.0,0.01050188]
[1768623905050,0.01050155,95224.0,95220.0,0.01045654]
[1768623905865,0.01050166,95223.0,95219.0,0.0105021]
[1768623907361,0.01050144,95225.0,95220.0,0.01050199]
[1768623907536,0.01050166,95223.0,95219.0,0.0105021]
[1768623907935,0.00426615,95225.0,95219.0,0.0105021]
[1768623908391,0.01050177,95222.0,95218.0,0.01050221]
[1768623908766,0.01050188,95221.0,95217.0,0.01050232]
[1768623909206,0.01050199,95220.0,95215.0,0.01050254]
[1768623909411,0.01050188,95221.0,95217.0,0.01050232]
[1768623909965,0.01050199,95220.0,95215.0,0.01050254]
[1768623910165,0.0105021,95219.0,95215.0,0.01050254]
[1768623910965,0.0105021,95219.0,95215.0,0.01045709]
[1768623913087,0.01050199,95220.0,95215.0,0.06296975]
[1768623913286,0.01050188,95221.0,95216.0,0.06301449]
[1768623914225,0.01050188,95221.0,95217.0,0.01050232]
[1768623915539,0.01050199,95220.0,95216.0,0.01050243]
[1768623916727,0.01050177,95222.0,95217.0,0.01050232]
[1768623916874,0.01050166,95223.0,95219.0,0.0105021]
[1768623918240,0.01050155,95224.0,95219.0,0.01045665]
[1768623919389,0.01050166,95223.0,95219.0,0.01045665]
[1768623921310,0.01050177,95222.0,95218.0,0.01050221]
[1768623922579,0.01050188,95221.0,95217.0,0.01050232]
[1768623923663,0.01050188,95221.0,95214.0,0.01056935]
[1768623923664,0.0630121,95220.0,95214.0,0.01056935]
[1768623924072,0.0630121,95220.0,95214.0,0.01052391]
[1768623924966,0.01050221,95218.0,95214.0,0.01052391]
[1768623925147,0.01050232,95217.0,95214.0,2.126e-05]
[1768623926172,0.01050199,95220.0,95214.0,2.126e-05]
[1768623926550,0.01050199,95220.0,95214.0,0.05253406]
[1768623927157,0.0105021,95219.0,95215.0,0.01050254]
[1768623927355,0.0105021,95219.0,95215.0,0.0104571]
[1768623932734,0.01050199,95220.0,95216.0,0.01050243]
[1768623933031,0.01050188,95221.0,95216.0,0.01050243]
[1768623933864,0.01050155,95224.0,95216.0,0.01050243]
[1768623934018,0.01050177,95222.0,95217.0,0.06301386]
[1768623934227,0.01050166,95223.0,95219.0,0.0105021]
[1768623937637,0.01050177,95222.0,95218.0,0.01050221]
[1768623938631,0.01050188,95221.0,95215.0,0.01041166]
[1768623938925,0.01050199,95220.0,95216.0,0.01050243]
[1768623939366,0.0105021,95219.0,95214.0,0.01052391]
[1768623939783,0.0105021,95219.0,95215.0,0.01050254]
[1768623939986,0.0105021,95219.0,95215.0,0.0104571]
[1768623940415,0.01050221,95218.0,95214.0,0.01052391]
[1768623941778,0.0105021,95219.0,95214.0,0.06303719]
[1768623942002,0.0105021,95219.0,95215.0,0.01050254]
[1768623943276,0.01050221,95218.0,95214.0,0.01052391]
[1768623944031,0.01050221,95218.0,95214.0,2.126e-05]
[1768623944950,0.01050232,95217.0,95214.0,2.126e-05]
[1768623946191,0.01050221,95218.0,95214.0,0.01052391]
[1768623946993,0.0105021,95219.0,95215.0,0.01050254]
[1768623947222,0.0105021,95219.0,95215.0,0.0104571]
[1768623953603,0.01050221,95218.0,95214.0,0.01052391]
[1768623954662,0.06301295,95219.0,95214.0,0.01052391]
[1768623954663,0.0105021,95219.0,95214.0,0.01052391]
[1768623955873,0.01050221,95218.0,95214.0,0.01052391]
[1768623956532,0.0105021,95219.0,95215.0,0.01050254]
[1768623956870,0.01050221,95218.0,95214.0,2.126e-05]
[1768623957076,0.01050232,95217.0,95214.0,2.126e-05]
[1768623961952,0.063014,95217.0,95214.0,2.126e-05]
[1768623962669,0.05251228,95216.0,95214.0,2.126e-05]
[1768623962854,0.063014,95217.0,95214.0,2.126e-05]
[1768623963065,0.05251218,95216.0,95214.0,2.126e-05]
[1768623964058,0.05251273,95215.0,95214.0,2.126e-05]
[1768623964234,0.05251221,95216.0,95214.0,2.126e-05]
[1768623965238,0.01050232,95217.0,95214.0,2.126e-05]
[1768623965888,0.06301435,95217.0,95214.0,2.126e-05]
[1768623966092,0.05251229,95216.0,95214.0,2.126e-05]
[1768623967433,0.01050232,95217.0,95214.0,2.126e-05]
[1768623967969,0.06301436,95217.0,95214.0,2.126e-05]
[1768623968196,0.05251235,95216.0,95214.0,2.126e-05]
[1768623968613,0.06301414,95217.0,95214.0,2.126e-05]
[1768623971016,0.0525123,95216.0,95214.0,2.126e-05]
[1768623972581,0.01050232,95217.0,95214.0,2.126e-05]
[1768623976063,0.01050221,95218.0,95214.0,0.01052391]
[1768623976235,0.01050221,95218.0,95214.0,0.01047847]
[1768623977084,0.0105021,95219.0,95214.0,0.01047847]
[1768623977604,0.0105021,95219.0,95215.0,0.01050254]
[1768623978271,0.01050221,95218.0,95213.0,0.01050276]
[1768623978473,0.01050221,95218.0,95214.0,0.01050265]
[1768623978626,0.0105021,95219.0,95214.0,0.01050265]
[1768623979070,0.0105021,95219.0,95215.0,0.01050254]
[1768623979658,0.01050199,95220.0,95215.0,0.01050254]
[1768623980818,0.01050199,95220.0,95215.0,0.06301515]
[1768623981043,0.01050199,95220.0,95215.0,0.01050254]
[1768623981832,0.0105021,95219.0,95215.0,0.01050254]
[1768623983086,0.0105021,95219.0,95215.0,0.01045711]
[1768623983218,0.01050221,95218.0,95214.0,0.01050265]
[1768623984330,0.0105021,95219.0,95214.0,0.01050265]
[1768623984782,0.0105021,95219.0,95215.0,0.01050254]
[1768623985042,0.01050199,95220.0,95215.0,0.01050254]
[1768623985266,0.01050199,95220.0,95216.0,0.01050243]
[1768623986145,0.01050188,95221.0,95217.0,0.01050232]
[1768623986959,0.01050188,95221.0,95216.0,0.01050243]
[1768623988365,0.01050188,95221.0,95217.0,0.01050232]
[1768623990341,0.01050188,95221.0,95217.0,0.01045689]
[1768623997530,0.01050188,95221.0,95217.0,0.01041146]
[1768623999056,0.01050155,95224.0,95218.0,0.01050221]
[1768623999236,0.01050166,95223.0,95219.0,0.0105021]
[1768623999923,0.01050177,95222.0,95218.0,0.01050221]
[1768624001450,0.01050166,95223.0,95219.0,0.0105021]
[1768624004744,0.01050166,95223.0,95219.0,0.01045667]
[1768624005295,0.01050155,95224.0,95220.0,0.01050199]
[1768624007492,0.01050166,95223.0,95219.0,0.0105021]
[1768624011058,0.01050144,95225.0,95220.0,0.01050199]
[1768624011379,0.01050144,95225.0,95220.0,0.01045656]
[1768624011529,0.01050144,95225.0,95220.0,0.01041113]
[1768624013122,0.01050144,95225.0,95221.0,0.01050188]
[1768624013325,0.01050144,95225.0,95220.0,0.06292103]
[1768624013326,0.01050144,95225.0,95220.0,0.01041113]
[1768624014286,0.01050155,95224.0,95219.0,0.0105021]
[1768624014808,0.01050166,95223.0,95219.0,0.0105021]
[1768624015817,0.01050177,95222.0,95218.0,0.01050221]
[1768624016177,0.01050177,95222.0,95217.0,0.01041146]
[1768624016178,0.01050188,95221.0,95217.0,0.01041146]
[1768624017001,0.01050188,95221.0,95216.0,0.01050243]
[1768624017403,0.01050188,95221.0,95217.0,0.01050232]
[1768624018244,0.01050177,95222.0,95217.0,0.01050232]
[1768624018474,0.01050188,95221.0,95217.0,0.01050232]
[1768624018847,0.01050199,95220.0,95216.0,0.01050243]
[1768624020358,0.01050188,95221.0,95216.0,0.01050243]
[1768624020568,0.01050188,95221.0,95217.0,0.01050232]
[1768624020718,0.01050177,95222.0,95217.0,0.01050232]
[1768624020926,0.01050177,95222.0,95218.0,0.01050221]
[1768624021151,0.01050155,95224.0,95218.0,0.01050221]
[1768624021371,0.01050144,95225.0,95220.0,0.01050199]
[1768624021581,0.01050155,95224.0,95219.0,0.0105021]
[1768624021777,0.01050155,95224.0,95201.0,0.12813303]
[1768624021778,0.010501,95229.0,95223.0,0.01050166]
[1768624022010,0.01050111,95228.0,95223.0,0.01050166]
[1768624022211,0.01050133,95226.0,95222.0,0.01050177]
[1768624023459,0.01050122,95227.0,95223.0,0.01050166]
[1768624023655,0.01050012,95237.0,95232.0,0.05955861]
[1768624023907,5.464e-05,95237.0,95234.0,0.0630022]
[1768624024727,5.464e-05,95237.0,95233.0,0.06300331]
[1768624024921,5.464e-05,95237.0,95233.0,0.01050056]
[1768624025342,5.464e-05,95237.0,95234.0,0.05955839]
[1768624025487,0.01049945,95243.0,95239.0,0.04905794]
[1768624025910,0.01049945,95243.0,95238.0,0.06300004]
[1768624026120,0.01049945,95243.0,95238.0,0.01050001]
[1768624026321,0.01049945,95243.0,95239.0,0.0104999]
[1768624026519,0.01049912,95246.0,95241.0,0.01049967]
[1768624026682,0.01049923,95245.0,95240.0,0.01049979]
[1768624026879,0.0001576,95247.0,95243.0,0.06299632]
[1768624027104,0.0001576,95247.0,95243.0,0.01049945]
[1768624029401,0.0001576,95247.0,95244.0,0.01049934]
[1768624029609,0.00020491,95247.0,95244.0,0.01049934]
[1768624030715,0.00020491,95247.0,95244.0,0.06299596]
[1768624031587,0.00020491,95247.0,95245.0,0.05249618]
[1768624031719,0.00020491,95247.0,95244.0,0.06299605]
[1768624032546,0.00020491,95247.0,95244.0,0.0629956]
[1768624032766,0.00020491,95247.0,95246.0,0.05249564]
[1768624034027,0.00020491,95247.0,95246.0,0.10155358]